[Event "*** SCC Grand Prix: Titled Tuesday Blitz"]
[Site "Chess.com"]
[Date "2020.10.06"]
[Round "1"]
[White "Korchmar_Vasiliy"]
[Black "SophieNikoladze"]
[Result "1-0"]
[WhiteElo "2582"]
[BlackElo "2280"]
[TimeControl "180+1"]
[EndTime "10:07:50 PDT"]
[Termination "Korchmar_Vasiliy won by resignation"]

1. d4 {[%clk 0:03:00.9]} 1... b5 {[%clk 0:02:59]} 2. e4 {[%clk 0:02:59.7]} 2...
Bb7 {[%clk 0:02:59]} 3. Bd3 {[%clk 0:02:59.2]} 3... e6 {[%clk 0:02:57.5]} 4. Nf3
{[%clk 0:02:58.6]} 4... c5 {[%clk 0:02:57.3]} 5. c3 {[%clk 0:02:57.2]} 5... a6
{[%clk 0:02:55.5]} 6. O-O {[%clk 0:02:56.8]} 6... Nf6 {[%clk 0:02:53.2]} 7. Nbd2
{[%clk 0:02:54]} 7... d6 {[%clk 0:02:51.8]} 8. a4 {[%clk 0:02:51.5]} 8... c4
{[%clk 0:02:50.8]} 9. Bc2 {[%clk 0:02:51.2]} 9... Nbd7 {[%clk 0:02:50.9]} 10.
Re1 {[%clk 0:02:44.3]} 10... e5 {[%clk 0:02:50.4]} 11. Nf1 {[%clk 0:02:42.4]}
11... Be7 {[%clk 0:02:48.8]} 12. Ng3 {[%clk 0:02:42.5]} 12... O-O {[%clk
0:02:46]} 13. Nf5 {[%clk 0:02:42.3]} 13... Re8 {[%clk 0:02:43.9]} 14. Bg5 {[%clk
0:02:24.1]} 14... h6 {[%clk 0:02:42.3]} 15. Bh4 {[%clk 0:02:13.7]} 15... Bf8
{[%clk 0:02:42]} 16. Qd2 {[%clk 0:02:05.9]} 16... Qc7 {[%clk 0:02:38.4]} 17. h3
{[%clk 0:01:46.9]} 17... Kh7 {[%clk 0:02:38]} 18. Rad1 {[%clk 0:01:37.8]} 18...
g6 {[%clk 0:02:34.2]} 19. dxe5 {[%clk 0:01:37]} 19... dxe5 {[%clk 0:02:30.8]}
20. Nd6 {[%clk 0:01:37.1]} 20... Re6 {[%clk 0:02:27.8]} 21. Nxf7 {[%clk
0:01:29.3]} 21... Rae8 {[%clk 0:01:59.1]} 22. axb5 {[%clk 0:01:13.8]} 22... axb5
{[%clk 0:01:56.4]} 23. Bg3 {[%clk 0:01:13.2]} 23... R8e7 {[%clk 0:01:49.5]} 24.
Nd6 {[%clk 0:01:04.4]} 24... Nh5 {[%clk 0:01:48.7]} 25. Bh2 {[%clk 0:00:52.8]}
25... Bc6 {[%clk 0:01:47.5]} 26. b3 {[%clk 0:00:32.5]} 26... Nb6 {[%clk
0:01:39.5]} 27. bxc4 {[%clk 0:00:30.2]} 27... bxc4 {[%clk 0:01:39.4]} 28. g4
{[%clk 0:00:26.6]} 28... Ng7 {[%clk 0:01:34.6]} 29. Nf5 {[%clk 0:00:24.5]} 29...
gxf5 {[%clk 0:01:27.5]} 30. exf5 {[%clk 0:00:25.4]} 30... Bxf3 {[%clk
0:01:21.2]} 31. fxe6+ {[%clk 0:00:24.6]} 31... Kg8 {[%clk 0:01:18.8]} 32. Qxh6
{[%clk 0:00:22.7]} 32... Rxe6 {[%clk 0:01:03.6]} 33. Qh7+ {[%clk 0:00:22.3]}
33... Kf7 {[%clk 0:01:02.7]} 34. Rb1 {[%clk 0:00:20.9]} 34... Bc5 {[%clk
0:00:54.7]} 35. Bg3 {[%clk 0:00:18]} 35... Nd5 {[%clk 0:00:48.1]} 36. Bf5 {[%clk
0:00:12.5]} 36... Nxc3 {[%clk 0:00:27.4]} 37. Bxe6+ {[%clk 0:00:10.3]} 37...
Kxe6 {[%clk 0:00:27.5]} 38. Rxe5+ {[%clk 0:00:09.8]} 38... Qxe5 {[%clk
0:00:26.1]} 39. Bxe5 {[%clk 0:00:09.9]} 39... Nxb1 {[%clk 0:00:25.6]} 40. Bxg7
{[%clk 0:00:06.2]} 40... Nd2 {[%clk 0:00:23.4]} 41. Qh6+ {[%clk 0:00:06.2]}
41... Kd7 {[%clk 0:00:22.2]} 42. Qxd2+ {[%clk 0:00:07.1]} 42... Kc6 {[%clk
0:00:20.5]} 43. Qc3 {[%clk 0:00:07.2]} 43... Bd5 {[%clk 0:00:20.4]} 44. Bd4
{[%clk 0:00:06.7]} 44... Bd6 {[%clk 0:00:20]} 45. g5 {[%clk 0:00:06.9]} 45...
Kb5 {[%clk 0:00:18.7]} 46. h4 {[%clk 0:00:07.1]} 46... Bb4 {[%clk 0:00:18]} 47.
Qc2 {[%clk 0:00:07.4]} 47... Bc6 {[%clk 0:00:15.8]} 48. Bc3 {[%clk 0:00:07.6]}
48... Bxc3 {[%clk 0:00:15.1]} 49. Qxc3 {[%clk 0:00:08.5]} 49... Bd5 {[%clk
0:00:14.8]} 50. g6 {[%clk 0:00:08.8]} 50... Kc6 {[%clk 0:00:15]} 51. h5 {[%clk
0:00:09.2]} 51... Kc5 {[%clk 0:00:15.5]} 52. h6 {[%clk 0:00:09.7]} 1-0

[Event "*** SCC Grand Prix: Titled Tuesday Blitz"]
[Site "Chess.com"]
[Date "2020.10.06"]
[Round "1"]
[White "GHANDEEVAM2003"]
[Black "Susal_De_Silva"]
[Result "0-1"]
[WhiteElo "2954"]
[BlackElo "2483"]
[TimeControl "180+1"]
[EndTime "10:07:51 PDT"]
[Termination "Susal_De_Silva won by resignation"]

1. b3 {[%clk 0:02:59.8]} 1... e5 {[%clk 0:02:59.4]} 2. Bb2 {[%clk 0:02:59.4]}
2... Nc6 {[%clk 0:03:00]} 3. e3 {[%clk 0:02:59.6]} 3... Nf6 {[%clk 0:03:00.2]}
4. Bb5 {[%clk 0:02:58.8]} 4... Bd6 {[%clk 0:03:00.2]} 5. Ne2 {[%clk 0:02:59.4]}
5... e4 {[%clk 0:02:59.6]} 6. O-O {[%clk 0:02:59.5]} 6... Bxh2+ {[%clk
0:02:47.3]} 7. Kxh2 {[%clk 0:02:58.5]} 7... Ng4+ {[%clk 0:02:47.5]} 8. Kg3
{[%clk 0:02:53.1]} 8... Qg5 {[%clk 0:02:30.7]} 9. f4 {[%clk 0:02:53.6]} 9...
exf3 {[%clk 0:02:27.7]} 10. Kxf3 {[%clk 0:02:53.3]} 10... Nh2+ {[%clk
0:02:18.3]} 11. Kf2 {[%clk 0:02:52.8]} 11... Ng4+ {[%clk 0:02:00.1]} 12. Ke1
{[%clk 0:02:47.8]} 12... Qxb5 {[%clk 0:01:58.2]} 13. Nf4 {[%clk 0:02:47.4]}
13... Nf6 {[%clk 0:01:38.2]} 14. Qf3 {[%clk 0:02:41.9]} 14... Qg5 {[%clk
0:01:36.3]} 15. Na3 {[%clk 0:02:38.5]} 15... Ne5 {[%clk 0:01:33.8]} 16. Qe2
{[%clk 0:02:36]} 16... d6 {[%clk 0:01:30]} 17. Nb5 {[%clk 0:02:35.1]} 17... Qg3+
{[%clk 0:01:17.6]} 18. Qf2 {[%clk 0:02:32.5]} 18... Qxf2+ {[%clk 0:01:17.4]} 19.
Kxf2 {[%clk 0:02:31.2]} 19... Kd8 {[%clk 0:01:16.3]} 20. Rh1 {[%clk 0:02:23.7]}
20... a6 {[%clk 0:01:14.8]} 21. Nc3 {[%clk 0:02:23.4]} 21... h6 {[%clk
0:01:11.6]} 22. Raf1 {[%clk 0:02:23.5]} 22... Bd7 {[%clk 0:01:09.2]} 23. Ncd5
{[%clk 0:02:19.9]} 23... Nxd5 {[%clk 0:01:07.3]} 24. Nxd5 {[%clk 0:02:20.8]}
24... Bc6 {[%clk 0:01:03.9]} 25. Nb4 {[%clk 0:02:20.3]} 25... f6 {[%clk
0:00:58.7]} 26. Nxc6+ {[%clk 0:02:17.9]} 26... Nxc6 {[%clk 0:00:59.6]} 27. Rh3
{[%clk 0:02:18.6]} 27... Kd7 {[%clk 0:00:59.7]} 28. Kg1 {[%clk 0:02:14.2]} 28...
Rae8 {[%clk 0:01:00.2]} 29. Rf4 {[%clk 0:02:13.4]} 29... Re6 {[%clk 0:00:57.7]}
30. Rg4 {[%clk 0:02:13]} 30... Re7 {[%clk 0:00:56.2]} 31. Rhg3 {[%clk
0:02:13.5]} 31... Rh7 {[%clk 0:00:53.3]} 32. Kf2 {[%clk 0:02:12.6]} 32... Ne5
{[%clk 0:00:53.7]} 33. Rb4 {[%clk 0:02:12.6]} 33... b6 {[%clk 0:00:53.3]} 34. a4
{[%clk 0:02:12.7]} 34... a5 {[%clk 0:00:53.4]} 35. Rh4 {[%clk 0:02:13.1]} 35...
g5 {[%clk 0:00:51.9]} 36. Rh1 {[%clk 0:02:12.4]} 36... h5 {[%clk 0:00:52.3]} 37.
Rgh3 {[%clk 0:02:09.3]} 37... h4 {[%clk 0:00:51]} 38. Ke2 {[%clk 0:02:09.5]}
38... Ref7 {[%clk 0:00:45.3]} 39. g3 {[%clk 0:02:07]} 39... Ng6 {[%clk
0:00:43.8]} 40. Bc3 {[%clk 0:02:03.5]} 40... g4 {[%clk 0:00:42.8]} 41. R3h2
{[%clk 0:02:02.5]} 41... h3 {[%clk 0:00:42.2]} 42. Rf1 {[%clk 0:02:00.4]} 42...
f5 {[%clk 0:00:40.8]} 43. Kf2 {[%clk 0:02:00.3]} 43... Ne5 {[%clk 0:00:39.7]}
44. Rhh1 {[%clk 0:01:55.2]} 44... Ke6 {[%clk 0:00:37.9]} 45. Ke2 {[%clk
0:01:54.6]} 45... Nf3 {[%clk 0:00:37.4]} 46. Rf2 {[%clk 0:01:53.7]} 46... Rh5
{[%clk 0:00:36.9]} 47. Rff1 {[%clk 0:01:53.1]} 47... Rfh7 {[%clk 0:00:36.7]} 48.
Rf2 {[%clk 0:01:53.3]} 48... h2 {[%clk 0:00:36.9]} 49. Rg2 {[%clk 0:01:52.2]}
49... Rh3 {[%clk 0:00:36.8]} 50. Kf2 {[%clk 0:01:52.1]} 50... Ng5 {[%clk
0:00:33.5]} 51. d3 {[%clk 0:01:52.1]} 51... Nf3 {[%clk 0:00:32.5]} 52. Kf1
{[%clk 0:01:51.6]} 52... c5 {[%clk 0:00:31.6]} 53. Be1 {[%clk 0:01:49.3]} 53...
d5 {[%clk 0:00:30.2]} 54. Re2 {[%clk 0:01:46.7]} 54... Kd6 {[%clk 0:00:28.7]}
55. Kg2 {[%clk 0:01:43.8]} 55... Re7 {[%clk 0:00:27.2]} 56. Bf2 {[%clk
0:01:42.9]} 56... d4 {[%clk 0:00:27]} 57. Rd1 {[%clk 0:01:33]} 57... Rh6 {[%clk
0:00:22.6]} 58. e4 {[%clk 0:01:28.1]} 58... fxe4 {[%clk 0:00:21.9]} 59. dxe4
{[%clk 0:01:25.2]} 59... h1=Q+ {[%clk 0:00:18.6]} 60. Rxh1 {[%clk 0:01:24.8]}
60... Rxh1 {[%clk 0:00:19.4]} 61. Kxh1 {[%clk 0:01:25.7]} 61... Rh7+ {[%clk
0:00:20.1]} 62. Kg2 {[%clk 0:01:26.3]} 62... Rh2+ {[%clk 0:00:20.5]} 63. Kf1
{[%clk 0:01:26.9]} 63... Rh1+ {[%clk 0:00:18]} 64. Kg2 {[%clk 0:01:27.4]} 64...
Rh2+ {[%clk 0:00:18.3]} 65. Kf1 {[%clk 0:01:28]} 65... Ke5 {[%clk 0:00:16.9]}
66. c3 {[%clk 0:01:16.4]} 66... d3 {[%clk 0:00:16]} 67. Re3 {[%clk 0:01:13]}
67... d2 {[%clk 0:00:15.2]} 68. Rd3 {[%clk 0:01:12.9]} 68... Rh1+ {[%clk
0:00:14.6]} 69. Ke2 {[%clk 0:01:12.7]} 69... Kxe4 {[%clk 0:00:12.5]} 70. Re3+
{[%clk 0:01:06.5]} 70... Kf5 {[%clk 0:00:11.9]} 71. Rd3 {[%clk 0:01:07]} 71...
Re1+ {[%clk 0:00:12.1]} 0-1

[Event "*** SCC Grand Prix: Titled Tuesday Blitz"]
[Site "Chess.com"]
[Date "2020.10.06"]
[Round "1"]
[White "ChessSkool"]
[Black "maxip32"]
[Result "1-0"]
[WhiteElo "2703"]
[BlackElo "2365"]
[TimeControl "180+1"]
[EndTime "10:07:54 PDT"]
[Termination "ChessSkool won on time"]

1. c4 {[%clk 0:02:59.4]} 1... g6 {[%clk 0:02:59]} 2. g3 {[%clk 0:02:58.6]} 2...
Bg7 {[%clk 0:02:59.2]} 3. Bg2 {[%clk 0:02:59.2]} 3... Nf6 {[%clk 0:02:59.2]} 4.
Nc3 {[%clk 0:02:59.4]} 4... O-O {[%clk 0:02:59.5]} 5. e3 {[%clk 0:02:55]} 5...
d6 {[%clk 0:02:58.3]} 6. Nge2 {[%clk 0:02:55.2]} 6... e5 {[%clk 0:02:57.8]} 7.
O-O {[%clk 0:02:52.8]} 7... a5 {[%clk 0:02:57.1]} 8. a3 {[%clk 0:02:51.2]} 8...
c6 {[%clk 0:02:50.9]} 9. d4 {[%clk 0:02:32]} 9... Nbd7 {[%clk 0:02:32.7]} 10.
Rb1 {[%clk 0:02:30.8]} 10... exd4 {[%clk 0:02:14.6]} 11. Nxd4 {[%clk 0:02:23.5]}
11... Re8 {[%clk 0:02:13.2]} 12. b3 {[%clk 0:02:16.9]} 12... Nc5 {[%clk
0:02:07.4]} 13. h3 {[%clk 0:02:09.6]} 13... Bd7 {[%clk 0:02:05.4]} 14. Bb2
{[%clk 0:02:08.1]} 14... Qb6 {[%clk 0:01:51.1]} 15. Ba1 {[%clk 0:02:07.9]} 15...
Rad8 {[%clk 0:01:47.7]} 16. b4 {[%clk 0:01:55.1]} 16... axb4 {[%clk 0:01:48.6]}
17. axb4 {[%clk 0:01:55.4]} 17... Nce4 {[%clk 0:01:48.4]} 18. Nxe4 {[%clk
0:01:48.2]} 18... Nxe4 {[%clk 0:01:49.3]} 19. Qc2 {[%clk 0:01:48.5]} 19... Ng5
{[%clk 0:01:35.6]} 20. Kh2 {[%clk 0:01:32.2]} 20... Ne6 {[%clk 0:01:34.8]} 21.
Nxe6 {[%clk 0:01:30.9]} 21... Bxe6 {[%clk 0:01:35.7]} 22. Bxg7 {[%clk
0:01:30.7]} 22... Kxg7 {[%clk 0:01:36.6]} 23. Qc3+ {[%clk 0:01:25.8]} 23... Kg8
{[%clk 0:01:05.6]} 24. Rfd1 {[%clk 0:01:25.8]} 24... Qa6 {[%clk 0:00:33.5]} 25.
b5 {[%clk 0:01:23.8]} 25... Qa8 {[%clk 0:00:30.9]} 26. Rb2 {[%clk 0:01:07.3]}
26... Qc8 {[%clk 0:00:30.2]} 27. Qb4 {[%clk 0:00:53]} 27... d5 {[%clk
0:00:25.5]} 28. cxd5 {[%clk 0:00:51.4]} 28... Bxd5 {[%clk 0:00:19.2]} 29. Bxd5
{[%clk 0:00:48]} 29... cxd5 {[%clk 0:00:15.3]} 30. Rbd2 {[%clk 0:00:46.7]} 30...
Qf5 {[%clk 0:00:15.2]} 31. Qf4 {[%clk 0:00:43.2]} 31... Qd7 {[%clk 0:00:14.3]}
32. Qb4 {[%clk 0:00:31]} 32... Qf5 {[%clk 0:00:14.1]} 33. b6 {[%clk 0:00:25.5]}
33... Re4 {[%clk 0:00:12.5]} 34. Qc5 {[%clk 0:00:23.2]} 34... h5 {[%clk
0:00:09.2]} 35. Kg2 {[%clk 0:00:22.5]} 35... Re5 {[%clk 0:00:07.2]} 36. Qc7
{[%clk 0:00:19.9]} 36... Rd7 {[%clk 0:00:06.4]} 37. Qc2 {[%clk 0:00:18]} 37...
Qe6 {[%clk 0:00:04.7]} 38. Qc8+ {[%clk 0:00:15]} 38... Kg7 {[%clk 0:00:05]} 39.
Rb1 {[%clk 0:00:15]} 39... h4 {[%clk 0:00:03.3]} 40. g4 {[%clk 0:00:13.9]} 40...
Re4 {[%clk 0:00:03.8]} 41. Qc3+ {[%clk 0:00:13.8]} 41... Kg8 {[%clk 0:00:03.2]}
42. Rbd1 {[%clk 0:00:12.8]} 42... Rxg4+ {[%clk 0:00:02.1]} 43. hxg4 {[%clk
0:00:13]} 43... Qxg4+ {[%clk 0:00:03]} 44. Kh2 {[%clk 0:00:11.9]} 44... h3
{[%clk 0:00:02.6]} 45. Rg1 {[%clk 0:00:11.6]} 45... Qf3 {[%clk 0:00:02.5]} 46.
Rg3 {[%clk 0:00:11.6]} 46... Qf5 {[%clk 0:00:02.3]} 47. Rxh3 {[%clk 0:00:11.3]}
47... d4 {[%clk 0:00:02.9]} 48. exd4 {[%clk 0:00:08.9]} 48... Qf4+ {[%clk
0:00:03.4]} 49. Kg2 {[%clk 0:00:08.9]} 49... Rd5 {[%clk 0:00:03.6]} 50. Qc8+
{[%clk 0:00:06.6]} 1-0

[Event "*** SCC Grand Prix: Titled Tuesday Blitz"]
[Site "Chess.com"]
[Date "2020.10.06"]
[Round "1"]
[White "Lion-Al-Messi"]
[Black "chesslh19"]
[Result "1/2-1/2"]
[WhiteElo "2533"]
[BlackElo "2219"]
[TimeControl "180+1"]
[EndTime "10:07:54 PDT"]
[Termination "Game drawn by repetition"]

1. e4 {[%clk 0:03:00.6]} 1... e5 {[%clk 0:02:54.3]} 2. Nf3 {[%clk 0:03:00.8]}
2... Nf6 {[%clk 0:02:54.6]} 3. Nxe5 {[%clk 0:02:59.2]} 3... d6 {[%clk
0:02:54.8]} 4. Nf3 {[%clk 0:02:59.4]} 4... Nxe4 {[%clk 0:02:54.9]} 5. d4 {[%clk
0:02:59.5]} 5... d5 {[%clk 0:02:54.3]} 6. Bd3 {[%clk 0:02:59.7]} 6... Be7 {[%clk
0:02:54.7]} 7. O-O {[%clk 0:02:59]} 7... Nc6 {[%clk 0:02:55.4]} 8. c4 {[%clk
0:02:58.4]} 8... Nb4 {[%clk 0:02:55.3]} 9. Be2 {[%clk 0:02:31]} 9... Bf5 {[%clk
0:02:54.4]} 10. Nc3 {[%clk 0:02:27]} 10... O-O {[%clk 0:02:52.7]} 11. Bf4 {[%clk
0:02:19.5]} 11... Rc8 {[%clk 0:01:14.9]} 12. a3 {[%clk 0:02:18]} 12... Nxc3
{[%clk 0:01:14.3]} 13. bxc3 {[%clk 0:02:18.9]} 13... Nc6 {[%clk 0:01:14.7]} 14.
cxd5 {[%clk 0:02:18]} 14... Qxd5 {[%clk 0:01:14.5]} 15. c4 {[%clk 0:02:17.5]}
15... Qe4 {[%clk 0:01:10.6]} 16. Bg3 {[%clk 0:02:15.3]} 16... Bf6 {[%clk
0:00:56.2]} 17. Re1 {[%clk 0:01:58.4]} 17... Nxd4 {[%clk 0:00:39.3]} 18. Nxd4
{[%clk 0:01:57.8]} 18... Qxd4 {[%clk 0:00:39.5]} 19. Qb3 {[%clk 0:01:56.8]}
19... Qxa1 {[%clk 0:00:35.8]} 20. Rxa1 {[%clk 0:01:55.7]} 20... Bxa1 {[%clk
0:00:36.7]} 21. h4 {[%clk 0:01:49.2]} 21... Bf6 {[%clk 0:00:35.5]} 22. Qxb7
{[%clk 0:01:46.2]} 22... Rfe8 {[%clk 0:00:25.3]} 23. Bf3 {[%clk 0:01:43.3]}
23... h6 {[%clk 0:00:21.2]} 24. Qxa7 {[%clk 0:01:39]} 24... Be4 {[%clk
0:00:16.7]} 25. Bxe4 {[%clk 0:01:12.8]} 25... Rxe4 {[%clk 0:00:17.6]} 26. Qb7
{[%clk 0:01:12.4]} 26... Re1+ {[%clk 0:00:13]} 27. Kh2 {[%clk 0:01:11.8]} 27...
Rce8 {[%clk 0:00:09.9]} 28. Qc6 {[%clk 0:00:56.4]} 28... R8e6 {[%clk 0:00:08.8]}
29. Qa8+ {[%clk 0:00:56.3]} 29... Kh7 {[%clk 0:00:08.4]} 30. f3 {[%clk
0:00:56.2]} 30... Ra1 {[%clk 0:00:07.1]} 31. a4 {[%clk 0:00:51.5]} 31... Re2
{[%clk 0:00:06.3]} 32. Bxc7 {[%clk 0:00:22.3]} 32... Bxh4 {[%clk 0:00:04.9]} 33.
Bg3 {[%clk 0:00:17.2]} 33... Bf6 {[%clk 0:00:03.3]} 34. c5 {[%clk 0:00:14.4]}
34... Rea2 {[%clk 0:00:02.8]} 35. c6 {[%clk 0:00:13.7]} 35... Rxa4 {[%clk
0:00:02.7]} 36. Qb7 {[%clk 0:00:13.1]} 36... Rc4 {[%clk 0:00:01]} 37. c7 {[%clk
0:00:05.8]} 37... Rac1 {[%clk 0:00:01.4]} 38. Bd6 {[%clk 0:00:04.1]} 38... g6
{[%clk 0:00:01.4]} 39. Kg3 {[%clk 0:00:03.8]} 39... h5 {[%clk 0:00:01.7]} 40.
Qd5 {[%clk 0:00:04]} 40... h4+ {[%clk 0:00:01.7]} 41. Kf2 {[%clk 0:00:04.1]}
41... R4c2+ {[%clk 0:00:02]} 42. Ke3 {[%clk 0:00:03.5]} 42... Rc3+ {[%clk
0:00:02.5]} 43. Ke4 {[%clk 0:00:01.7]} 43... Rc4+ {[%clk 0:00:02.7]} 44. Ke3
{[%clk 0:00:02.1]} 44... R4c3+ {[%clk 0:00:03.2]} 45. Ke2 {[%clk 0:00:02.3]}
45... R3c2+ {[%clk 0:00:03.5]} 46. Ke3 {[%clk 0:00:01.6]} 46... Rc3+ {[%clk
0:00:04.1]} 1/2-1/2

[Event "*** SCC Grand Prix: Titled Tuesday Blitz"]
[Site "Chess.com"]
[Date "2020.10.06"]
[Round "1"]
[White "GigaQuparadze"]
[Black "chenxiaoyuer"]
[Result "1-0"]
[WhiteElo "3017"]
[BlackElo "2472"]
[TimeControl "180+1"]
[EndTime "10:07:55 PDT"]
[Termination "GigaQuparadze won by resignation"]

1. e4 {[%clk 0:03:00.9]} 1... c5 {[%clk 0:02:59.4]} 2. Nf3 {[%clk 0:03:00.7]}
2... d6 {[%clk 0:02:56.8]} 3. d4 {[%clk 0:03:00.2]} 3... cxd4 {[%clk 0:02:57.7]}
4. Nxd4 {[%clk 0:03:00.7]} 4... Nf6 {[%clk 0:02:57.8]} 5. Nc3 {[%clk 0:03:00.6]}
5... Nc6 {[%clk 0:02:58.4]} 6. Be2 {[%clk 0:02:59.8]} 6... g6 {[%clk 0:02:57.3]}
7. Nb3 {[%clk 0:02:59.1]} 7... Bg7 {[%clk 0:02:56.5]} 8. O-O {[%clk 0:02:59.2]}
8... O-O {[%clk 0:02:57.1]} 9. Kh1 {[%clk 0:02:57.5]} 9... Be6 {[%clk 0:02:56]}
10. Bg5 {[%clk 0:02:55.3]} 10... Rc8 {[%clk 0:02:48.6]} 11. f4 {[%clk 0:02:54]}
11... a6 {[%clk 0:02:46.5]} 12. Bf3 {[%clk 0:02:53.4]} 12... b5 {[%clk
0:02:42.7]} 13. Nd5 {[%clk 0:02:50.8]} 13... Nd7 {[%clk 0:02:25.6]} 14. c3
{[%clk 0:02:46.6]} 14... f6 {[%clk 0:02:18.5]} 15. Bh4 {[%clk 0:02:45.9]} 15...
Bf7 {[%clk 0:02:17.8]} 16. a4 {[%clk 0:02:40.6]} 16... e6 {[%clk 0:02:00.1]} 17.
axb5 {[%clk 0:02:38.6]} 17... axb5 {[%clk 0:02:01]} 18. Ne3 {[%clk 0:02:37.2]}
18... g5 {[%clk 0:01:59.3]} 19. Bg3 {[%clk 0:02:31]} 19... gxf4 {[%clk
0:01:58.2]} 20. Bxf4 {[%clk 0:02:31.9]} 20... Nde5 {[%clk 0:01:57.7]} 21. Be2
{[%clk 0:02:31.6]} 21... b4 {[%clk 0:01:46.2]} 22. c4 {[%clk 0:02:26.3]} 22...
Qe7 {[%clk 0:01:30]} 23. Qd2 {[%clk 0:02:22.9]} 23... Ra8 {[%clk 0:01:26.1]} 24.
Rad1 {[%clk 0:02:21.6]} 24... Rfd8 {[%clk 0:01:24.1]} 25. Nd4 {[%clk 0:02:11.2]}
25... Nxd4 {[%clk 0:01:07.8]} 26. Qxd4 {[%clk 0:02:12.1]} 26... Qc7 {[%clk
0:01:01.8]} 27. Qd2 {[%clk 0:02:10.8]} 27... Qc5 {[%clk 0:00:54.9]} 28. b3
{[%clk 0:01:56.8]} 28... Ra3 {[%clk 0:00:49.9]} 29. Rb1 {[%clk 0:01:54.2]} 29...
Nc6 {[%clk 0:00:42.9]} 30. Nc2 {[%clk 0:01:51.7]} 30... Ra2 {[%clk 0:00:41.3]}
31. Be3 {[%clk 0:01:51.5]} 31... Qe5 {[%clk 0:00:36.9]} 32. Bd3 {[%clk
0:01:30.8]} 32... Qc3 {[%clk 0:00:32.6]} 33. Rfc1 {[%clk 0:01:24.5]} 33... Qxd2
{[%clk 0:00:30.1]} 34. Bxd2 {[%clk 0:01:25.4]} 34... Rb8 {[%clk 0:00:17.6]} 35.
Ra1 {[%clk 0:01:15.4]} 35... Rb2 {[%clk 0:00:12.8]} 36. Rab1 {[%clk 0:01:15.5]}
36... Rxb1 {[%clk 0:00:12.2]} 37. Rxb1 {[%clk 0:01:15.1]} 37... Bg6 {[%clk
0:00:07.8]} 38. Re1 {[%clk 0:01:07.4]} 38... Ne5 {[%clk 0:00:07.1]} 39. Bf1
{[%clk 0:01:07.1]} 39... Nc6 {[%clk 0:00:07.1]} 40. h3 {[%clk 0:01:04.7]} 40...
h5 {[%clk 0:00:07.1]} 41. Bf4 {[%clk 0:01:00.3]} 41... e5 {[%clk 0:00:05.5]} 42.
Bd2 {[%clk 0:01:00]} 42... Kf7 {[%clk 0:00:04.1]} 43. Bd3 {[%clk 0:01:00.1]}
43... Ke6 {[%clk 0:00:04.1]} 44. Ra1 {[%clk 0:00:59.8]} 44... Rb7 {[%clk
0:00:02.8]} 45. Ra6 {[%clk 0:00:59.2]} 45... Kd7 {[%clk 0:00:02.2]} 46. Be3
{[%clk 0:00:59]} 46... Kc7 {[%clk 0:00:02.4]} 47. Kh2 {[%clk 0:00:55.2]} 47...
Bf8 {[%clk 0:00:02.7]} 48. Ra8 {[%clk 0:00:54.2]} 48... Be7 {[%clk 0:00:02.8]}
49. Ra6 {[%clk 0:00:51.4]} 49... Bf7 {[%clk 0:00:02.3]} 50. Be2 {[%clk
0:00:49.2]} 50... Nb8 {[%clk 0:00:02]} 51. Ra4 {[%clk 0:00:48.2]} 51... Nc6
{[%clk 0:00:02.2]} 52. Bd2 {[%clk 0:00:48.3]} 52... Be8 {[%clk 0:00:02.4]} 53.
Ra8 {[%clk 0:00:44.7]} 53... Bd7 {[%clk 0:00:02.1]} 54. Bxh5 {[%clk 0:00:44]}
54... Rb8 {[%clk 0:00:01.9]} 55. Rxb8 {[%clk 0:00:43.7]} 55... Kxb8 {[%clk
0:00:02.3]} 56. Nxb4 {[%clk 0:00:43.1]} 56... Nd4 {[%clk 0:00:03.2]} 57. Bd1
{[%clk 0:00:41.2]} 57... Be6 {[%clk 0:00:02.5]} 58. Nd5 {[%clk 0:00:40.9]} 58...
Bxd5 {[%clk 0:00:01.1]} 59. cxd5 {[%clk 0:00:40.1]} 59... Bd8 {[%clk 0:00:02]}
60. g4 {[%clk 0:00:39.4]} 60... Bb6 {[%clk 0:00:02.9]} 61. h4 {[%clk 0:00:39.2]}
61... Kc7 {[%clk 0:00:03.8]} 62. h5 {[%clk 0:00:39.5]} 62... Kd7 {[%clk
0:00:04.7]} 63. h6 {[%clk 0:00:39.1]} 63... Ke7 {[%clk 0:00:05.6]} 64. h7 {[%clk
0:00:38.8]} 64... Kf7 {[%clk 0:00:06.5]} 1-0